[Event "Titled Tuesday Blitz May 10 Late 2022"]
[White "Gurevich, Dmitry"]
[Black "Jones, Gawain C B"]
[WhiteFideId "2000407"]
[BlackFideId "409561"]
[WhiteElo "2506"]
[BlackElo "2657"]
[Result "0-1"]
[Round "05"]
[TimeControl "180+1"]
[Date "2022.05.10"]
[WhiteClock "0:00:05"]
[BlackClock "0:00:04"]

1. d4 {[%clk 0:03:00]}  Nf6 {[%clk 0:02:59]} 2. c4 {[%clk 0:03:00]}  g6 {[%clk 0:02:58]} 3. Nc3 {[%clk 0:03:00]}  Bg7 {[%clk 0:02:59]} 4. e4 {[%clk 0:03:00]}  d6 {[%clk 0:02:59]} 5. Nf3 {[%clk 0:03:00]}  O-O {[%clk 0:02:59]} 6. Be2 {[%clk 0:03:00]}  Nbd7 {[%clk 0:03:00]} 7. O-O {[%clk 0:03:00]}  e5 {[%clk 0:03:01]} 8. Be3 {[%clk 0:02:59]}  Qe7 {[%clk 0:02:59]} 9. d5 {[%clk 0:02:58]}  c5 {[%clk 0:02:59]} 10. Nd2 {[%clk 0:02:53]}  Kh8 {[%clk 0:02:58]} 11. a3 {[%clk 0:02:52]}  Ng8 {[%clk 0:02:58]} 12. b4 {[%clk 0:02:50]}  f5 {[%clk 0:02:58]} 13. f3 {[%clk 0:02:48]}  b6 {[%clk 0:02:57]} 14. Nb3 {[%clk 0:02:45]}  Ngf6 {[%clk 0:02:53]} 15. bxc5 {[%clk 0:02:44]}  Nxc5 {[%clk 0:02:49]} 16. Nxc5 {[%clk 0:02:43]}  bxc5 {[%clk 0:02:49]} 17. Rb1 {[%clk 0:02:40]}  f4 {[%clk 0:02:44]} 18. Bf2 {[%clk 0:02:39]}  g5 {[%clk 0:02:45]} 19. Qa4 {[%clk 0:02:34]}  g4 {[%clk 0:02:43]} 20. Bh4 {[%clk 0:02:32]}  g3 {[%clk 0:02:24]} 21. Qc6 {[%clk 0:02:17]}  Bd7 {[%clk 0:02:23]} 22. Rb7 {[%clk 0:02:14]}  gxh2+ {[%clk 0:02:18]} 23. Kh1 {[%clk 0:02:08]}  Rad8 {[%clk 0:01:28]} 24. Nb5 {[%clk 0:02:05]}  Qe8 {[%clk 0:01:21]} 25. Bxf6 {[%clk 0:01:55]}  Bxc6 {[%clk 0:01:04]} 26. Bxg7+ {[%clk 0:01:55]}  Kg8 {[%clk 0:01:04]} 27. dxc6 {[%clk 0:01:50]}  Rf7 {[%clk 0:01:04]} 28. Rxf7 {[%clk 0:01:40]}  Kxf7 {[%clk 0:00:56]} 29. c7 {[%clk 0:01:36]}  Rd7 {[%clk 0:00:55]} 30. Rd1 {[%clk 0:01:11]}  Ke6 {[%clk 0:00:42]} 31. Bh6 {[%clk 0:00:47]}  a6 {[%clk 0:00:41]} 32. Nc3 {[%clk 0:00:42]}  Rxc7 {[%clk 0:00:41]} 33. g4 {[%clk 0:00:40]}  fxg3 {[%clk 0:00:28]} 34. f4 {[%clk 0:00:39]}  Qg8 {[%clk 0:00:13]} 35. f5+ {[%clk 0:00:35]}  Kd7 {[%clk 0:00:13]} 36. Nd5 {[%clk 0:00:33]}  Kd8 {[%clk 0:00:04]} 37. Bf3 {[%clk 0:00:30]}  Rb7 {[%clk 0:00:04]} 38. Bg2 {[%clk 0:00:27]}  Rb2 {[%clk 0:00:04]} 39. f6 {[%clk 0:00:26]}  Qg6 {[%clk 0:00:04]} 40. Ne3 {[%clk 0:00:23]}  Qxh6 {[%clk 0:00:03]} 41. Rxd6+ {[%clk 0:00:15]}  Kc7 {[%clk 0:00:04]} 42. Rd3 {[%clk 0:00:12]}  Rb1+ {[%clk 0:00:03]} 43. Nf1 {[%clk 0:00:11]}  Qxf6 {[%clk 0:00:04]} 44. Bh3 {[%clk 0:00:05]}  Rxf1+ {[%clk 0:00:04]} 0-1


[Site "https://www.chess.com"]

[Event "Titled Tuesday Blitz May 10 Late 2022"]
[White "Hardaway, Brewington"]
[Black "Castellanos Hernandez, Emilio Au"]
[WhiteFideId "30941849"]
[BlackFideId "5114179"]
[WhiteElo "1768"]
[BlackElo "2021"]
[Result "1-0"]
[Round "05"]
[TimeControl "180+1"]
[Date "2022.05.11"]
[WhiteClock "0:01:51"]
[BlackClock "0:01:16"]

1. e4 {[%clk 0:02:56]}  c5 {[%clk 0:02:46]} 2. Nf3 {[%clk 0:02:55]}  Nc6 {[%clk 0:02:45]} 3. d4 {[%clk 0:02:53]}  cxd4 {[%clk 0:02:45]} 4. Nxd4 {[%clk 0:02:51]}  d6 {[%clk 0:02:45]} 5. Be3 {[%clk 0:02:49]}  Nf6 {[%clk 0:02:43]} 6. f3 {[%clk 0:02:45]}  g6 {[%clk 0:02:42]} 7. Nc3 {[%clk 0:02:42]}  Bg7 {[%clk 0:02:38]} 8. Qd2 {[%clk 0:02:41]}  Bd7 {[%clk 0:02:36]} 9. O-O-O {[%clk 0:02:37]}  a6 {[%clk 0:02:33]} 10. g4 {[%clk 0:02:36]}  Qc7 {[%clk 0:02:27]} 11. h4 {[%clk 0:02:32]}  h5 {[%clk 0:02:11]} 12. g5 {[%clk 0:02:27]}  Ng8 {[%clk 0:02:03]} 13. Nd5 {[%clk 0:02:24]}  Qd8 {[%clk 0:01:55]} 14. Nxc6 {[%clk 0:02:22]}  Bxc6 {[%clk 0:01:56]} 15. Bb6 {[%clk 0:02:20]}  Qc8 {[%clk 0:01:54]} 16. Nc7+ {[%clk 0:02:20]}  Kf8 {[%clk 0:01:54]} 17. Bh3 {[%clk 0:02:16]}  e6 {[%clk 0:01:47]} 18. Qxd6+ {[%clk 0:02:13]}  Ne7 {[%clk 0:01:46]} 19. Nxa8 {[%clk 0:02:12]}  Qxa8 {[%clk 0:01:45]} 20. Qd8+ {[%clk 0:02:09]}  Qxd8 {[%clk 0:01:44]} 21. Rxd8+ {[%clk 0:02:10]}  Be8 {[%clk 0:01:39]} 22. Bc5 {[%clk 0:02:09]}  f6 {[%clk 0:01:38]} 23. gxf6 {[%clk 0:02:06]}  Bxf6 {[%clk 0:01:39]} 24. Bxe6 {[%clk 0:02:05]}  Kg7 {[%clk 0:01:38]} 25. Rhd1 {[%clk 0:02:03]}  Nc6 {[%clk 0:01:36]} 26. Rc8 {[%clk 0:02:00]}  Bxh4 {[%clk 0:01:35]} 27. Rc7+ {[%clk 0:01:59]}  Kf6 {[%clk 0:01:30]} 28. Bd7 {[%clk 0:01:55]}  Bg5+ {[%clk 0:01:18]} 29. Kb1 {[%clk 0:01:53]}  h4 {[%clk 0:01:17]} 30. Bxc6 {[%clk 0:01:52]}  Bxc6 {[%clk 0:01:16]} 31. Bd4+ {[%clk 0:01:51]} 1-0


[Site "https://www.chess.com"]

[Event "Titled Tuesday Blitz May 10 Late 2022"]
[White "Hess, Robert"]
[Black "Srinath, Rao S.V."]
[WhiteFideId "2022036"]
[BlackFideId "5028876"]
[WhiteElo "2557"]
[BlackElo "2181"]
[Result "0-1"]
[Round "05"]
[TimeControl "180+1"]
[Date "2022.05.11"]
[WhiteClock "0:00:07"]
[BlackClock "0:01:08"]

1. e4 {[%clk 0:03:00]}  e6 {[%clk 0:02:59]} 2. d3 {[%clk 0:02:14]}  d5 {[%clk 0:03:00]} 3. Nd2 {[%clk 0:02:14]}  Nf6 {[%clk 0:02:55]} 4. g3 {[%clk 0:02:12]}  g6 {[%clk 0:02:55]} 5. Bg2 {[%clk 0:02:12]}  Bg7 {[%clk 0:02:56]} 6. Qe2 {[%clk 0:02:12]}  O-O {[%clk 0:02:55]} 7. h4 {[%clk 0:02:08]}  e5 {[%clk 0:02:46]} 8. h5 {[%clk 0:01:58]}  gxh5 {[%clk 0:02:41]} 9. exd5 {[%clk 0:01:58]}  c6 {[%clk 0:02:37]} 10. d6 {[%clk 0:01:45]}  Qxd6 {[%clk 0:02:34]} 11. Ne4 {[%clk 0:01:45]}  Nxe4 {[%clk 0:02:30]} 12. Bxe4 {[%clk 0:01:45]}  Bg4 {[%clk 0:02:28]} 13. Bf3 {[%clk 0:01:09]}  f5 {[%clk 0:02:20]} 14. Bd2 {[%clk 0:00:59]}  Na6 {[%clk 0:02:08]} 15. O-O-O {[%clk 0:00:58]}  Nc5 {[%clk 0:02:05]} 16. Qe3 {[%clk 0:00:48]}  f4 {[%clk 0:01:59]} 17. gxf4 {[%clk 0:00:27]}  exf4 {[%clk 0:02:00]} 18. Qe2 {[%clk 0:00:27]}  Na4 {[%clk 0:01:54]} 19. c3 {[%clk 0:00:25]}  Rae8 {[%clk 0:01:52]} 20. Qf1 {[%clk 0:00:24]}  Qe6 {[%clk 0:01:46]} 21. Kb1 {[%clk 0:00:18]}  b5 {[%clk 0:01:33]} 22. Rxh5 {[%clk 0:00:14]}  Bxh5 {[%clk 0:01:26]} 23. Bxh5 {[%clk 0:00:15]}  Rd8 {[%clk 0:01:24]} 24. Bf3 {[%clk 0:00:13]}  b4 {[%clk 0:01:21]} 25. d4 {[%clk 0:00:10]}  bxc3 {[%clk 0:01:20]} 26. bxc3 {[%clk 0:00:10]}  Rb8+ {[%clk 0:01:19]} 27. Ka1 {[%clk 0:00:09]}  Rb2 {[%clk 0:01:18]} 28. d5 {[%clk 0:00:10]}  cxd5 {[%clk 0:01:14]} 29. Qe2 {[%clk 0:00:06]}  Qb6 {[%clk 0:01:11]} 30. Bxd5+ {[%clk 0:00:06]}  Kh8 {[%clk 0:01:10]} 31. Bb3 {[%clk 0:00:06]}  Rxb3 {[%clk 0:01:07]} 32. axb3 {[%clk 0:00:06]}  Qxb3 {[%clk 0:01:08]} 33. Bc1 {[%clk 0:00:07]} 0-1


[Site "https://www.chess.com"]

[Event "Titled Tuesday Blitz May 10 Late 2022"]
[White "Kalajzic, Ivan"]
[Black "Fishbein, Alexander"]
[WhiteFideId "14506378"]
[BlackFideId "2000377"]
[WhiteElo "2163"]
[BlackElo "2442"]
[Result "0-1"]
[Round "05"]
[TimeControl "180+1"]
[Date "2022.05.11"]
[WhiteClock "0:00:34"]
[BlackClock "0:00:36"]

1. b3 {[%clk 0:03:00]}  c5 {[%clk 0:02:56]} 2. Bb2 {[%clk 0:03:00]}  Nc6 {[%clk 0:02:56]} 3. e3 {[%clk 0:03:01]}  a6 {[%clk 0:02:56]} 4. Nf3 {[%clk 0:03:00]}  d5 {[%clk 0:02:55]} 5. d4 {[%clk 0:03:00]}  Nf6 {[%clk 0:02:51]} 6. Be2 {[%clk 0:02:59]}  e6 {[%clk 0:02:51]} 7. O-O {[%clk 0:02:59]}  Be7 {[%clk 0:02:50]} 8. dxc5 {[%clk 0:02:58]}  Bxc5 {[%clk 0:02:49]} 9. Nbd2 {[%clk 0:02:58]}  O-O {[%clk 0:02:49]} 10. Re1 {[%clk 0:02:48]}  Qe7 {[%clk 0:02:48]} 11. Nf1 {[%clk 0:02:48]}  Ba3 {[%clk 0:02:45]} 12. Bxa3 {[%clk 0:02:47]}  Qxa3 {[%clk 0:02:45]} 13. Ng3 {[%clk 0:02:47]}  e5 {[%clk 0:02:38]} 14. c4 {[%clk 0:02:41]}  Be6 {[%clk 0:02:33]} 15. cxd5 {[%clk 0:02:39]}  Nxd5 {[%clk 0:02:32]} 16. Bc4 {[%clk 0:02:31]}  Rad8 {[%clk 0:02:24]} 17. Qc1 {[%clk 0:02:30]}  Qxc1 {[%clk 0:02:22]} 18. Raxc1 {[%clk 0:02:31]}  f6 {[%clk 0:02:15]} 19. e4 {[%clk 0:02:07]}  Nf4 {[%clk 0:02:13]} 20. Nf5 {[%clk 0:02:05]}  Bxc4 {[%clk 0:02:05]} 21. Rxc4 {[%clk 0:02:05]}  g6 {[%clk 0:02:00]} 22. Ne3 {[%clk 0:02:01]}  Rd3 {[%clk 0:01:52]} 23. g3 {[%clk 0:02:01]}  Ne6 {[%clk 0:01:50]} 24. Rd1 {[%clk 0:01:52]}  Rfd8 {[%clk 0:01:47]} 25. Rxd3 {[%clk 0:01:50]}  Rxd3 {[%clk 0:01:48]} 26. Ne1 {[%clk 0:01:49]}  Rd2 {[%clk 0:01:43]} 27. Rc2 {[%clk 0:01:41]}  Rxc2 {[%clk 0:01:43]} 28. N1xc2 {[%clk 0:01:40]}  Kf7 {[%clk 0:01:43]} 29. Kf1 {[%clk 0:01:39]}  Ng5 {[%clk 0:01:42]} 30. Nc4 {[%clk 0:01:29]}  Nxe4 {[%clk 0:01:42]} 31. f3 {[%clk 0:01:29]}  Nc3 {[%clk 0:01:41]} 32. Nd6+ {[%clk 0:01:29]}  Ke7 {[%clk 0:01:40]} 33. Nxb7 {[%clk 0:01:30]}  Nxa2 {[%clk 0:01:40]} 34. Nc5 {[%clk 0:01:26]}  Nab4 {[%clk 0:01:39]} 35. Ne3 {[%clk 0:01:24]}  f5 {[%clk 0:01:36]} 36. Nc4 {[%clk 0:01:24]}  Nd4 {[%clk 0:01:15]} 37. Nxe5 {[%clk 0:01:19]}  Kd6 {[%clk 0:01:13]} 38. Ned7 {[%clk 0:01:12]}  Nxb3 {[%clk 0:01:04]} 39. Nxb3 {[%clk 0:01:11]}  Kxd7 {[%clk 0:01:04]} 40. Ke2 {[%clk 0:01:09]}  Kd6 {[%clk 0:01:04]} 41. Ke3 {[%clk 0:01:07]}  Kd5 {[%clk 0:01:05]} 42. Kf4 {[%clk 0:01:07]}  Kc4 {[%clk 0:01:00]} 43. Na5+ {[%clk 0:01:02]}  Kb5 {[%clk 0:01:00]} 44. Nb3 {[%clk 0:01:01]}  Nd3+ {[%clk 0:00:51]} 45. Kg5 {[%clk 0:01:01]}  Kc4 {[%clk 0:00:49]} 46. Na5+ {[%clk 0:00:59]}  Kb4 {[%clk 0:00:49]} 47. Nb7 {[%clk 0:00:58]}  Nc5 {[%clk 0:00:45]} 48. Nd8 {[%clk 0:00:51]}  Kb5 {[%clk 0:00:43]} 49. Kh6 {[%clk 0:00:47]}  a5 {[%clk 0:00:43]} 50. Nf7 {[%clk 0:00:46]}  a4 {[%clk 0:00:43]} 51. Nd6+ {[%clk 0:00:47]}  Kb4 {[%clk 0:00:43]} 52. Kxh7 {[%clk 0:00:45]}  a3 {[%clk 0:00:43]} 53. Kxg6 {[%clk 0:00:46]}  a2 {[%clk 0:00:43]} 54. Ne8 {[%clk 0:00:42]}  a1=Q {[%clk 0:00:43]} 55. Nf6 {[%clk 0:00:43]}  Qh1 {[%clk 0:00:40]} 56. h4 {[%clk 0:00:42]}  Qxf3 {[%clk 0:00:39]} 57. h5 {[%clk 0:00:38]}  Qxg3+ {[%clk 0:00:39]} 58. Kxf5 {[%clk 0:00:38]}  Nd3 {[%clk 0:00:37]} 59. h6 {[%clk 0:00:36]}  Qf4+ {[%clk 0:00:37]} 60. Kg6 {[%clk 0:00:37]}  Ne5+ {[%clk 0:00:36]} 61. Kg7 {[%clk 0:00:36]}  Qg5+ {[%clk 0:00:36]} 62. Kh7 {[%clk 0:00:34]}  Qxf6 {[%clk 0:00:36]} 0-1


[Site "https://www.chess.com"]

[Event "Titled Tuesday Blitz May 10 Late 2022"]
[White "Lewicki, Miroslaw"]
[Black "Matinian, Nikita"]
[WhiteFideId "1113380"]
[BlackFideId "24129100"]
[WhiteElo "2283"]
[BlackElo "2422"]
[Result "1-0"]
[Round "05"]
[TimeControl "180+1"]
[Date "2022.05.11"]
[WhiteClock "0:00:07"]
[BlackClock "0:00:01"]

1. b3 {[%clk 0:03:00]}  e5 {[%clk 0:02:57]} 2. Bb2 {[%clk 0:03:01]}  Nc6 {[%clk 0:02:54]} 3. g3 {[%clk 0:03:02]}  h5 {[%clk 0:02:53]} 4. Nf3 {[%clk 0:02:51]}  h4 {[%clk 0:02:50]} 5. Nxh4 {[%clk 0:02:47]}  Rxh4 {[%clk 0:02:50]} 6. gxh4 {[%clk 0:02:47]}  Qxh4 {[%clk 0:02:51]} 7. e3 {[%clk 0:02:46]}  Nf6 {[%clk 0:02:46]} 8. Qf3 {[%clk 0:02:45]}  d6 {[%clk 0:02:16]} 9. Nc3 {[%clk 0:01:51]}  Bg4 {[%clk 0:02:08]} 10. Qg3 {[%clk 0:01:51]}  Qh7 {[%clk 0:02:03]} 11. Bd3 {[%clk 0:01:44]}  g6 {[%clk 0:02:01]} 12. Be2 {[%clk 0:01:38]}  Bxe2 {[%clk 0:01:57]} 13. Nxe2 {[%clk 0:01:38]}  Nb4 {[%clk 0:01:57]} 14. Kd1 {[%clk 0:01:18]}  g5 {[%clk 0:01:40]} 15. d3 {[%clk 0:00:42]}  Nxd3 {[%clk 0:01:39]} 16. cxd3 {[%clk 0:00:43]}  Qxd3+ {[%clk 0:01:39]} 17. Ke1 {[%clk 0:00:43]}  Ne4 {[%clk 0:01:40]} 18. Qf3 {[%clk 0:00:44]}  Qd2+ {[%clk 0:01:38]} 19. Kf1 {[%clk 0:00:45]}  Qxb2 {[%clk 0:01:38]} 20. Qxe4 {[%clk 0:00:45]}  Qxa1+ {[%clk 0:01:36]} 21. Kg2 {[%clk 0:00:46]}  Qxa2 {[%clk 0:01:34]} 22. Qxb7 {[%clk 0:00:46]}  Rd8 {[%clk 0:01:34]} 23. Nc3 {[%clk 0:00:42]}  Qc2 {[%clk 0:01:27]} 24. Nd5 {[%clk 0:00:40]}  Be7 {[%clk 0:01:14]} 25. Nxc7+ {[%clk 0:00:38]}  Kf8 {[%clk 0:01:13]} 26. Nd5 {[%clk 0:00:38]}  Re8 {[%clk 0:01:10]} 27. Ra1 {[%clk 0:00:37]}  Qc8 {[%clk 0:00:59]} 28. Qxc8 {[%clk 0:00:31]}  Rxc8 {[%clk 0:01:00]} 29. Rxa7 {[%clk 0:00:31]}  Bd8 {[%clk 0:01:00]} 30. b4 {[%clk 0:00:31]}  f5 {[%clk 0:00:59]} 31. Rh7 {[%clk 0:00:26]}  Rb8 {[%clk 0:00:56]} 32. Rd7 {[%clk 0:00:20]}  g4 {[%clk 0:00:41]} 33. Rxd6 {[%clk 0:00:20]}  Kf7 {[%clk 0:00:42]} 34. h3 {[%clk 0:00:11]}  gxh3+ {[%clk 0:00:40]} 35. Kxh3 {[%clk 0:00:12]}  Bg5 {[%clk 0:00:39]} 36. f4 {[%clk 0:00:12]}  exf4 {[%clk 0:00:38]} 37. exf4 {[%clk 0:00:13]}  Bd8 {[%clk 0:00:35]} 38. b5 {[%clk 0:00:12]}  Ba5 {[%clk 0:00:35]} 39. b6 {[%clk 0:00:12]}  Rh8+ {[%clk 0:00:10]} 40. Kg3 {[%clk 0:00:11]}  Rg8+ {[%clk 0:00:10]} 41. Kf3 {[%clk 0:00:11]}  Rg1 {[%clk 0:00:08]} 42. b7 {[%clk 0:00:09]}  Rf1+ {[%clk 0:00:06]} 43. Ke2 {[%clk 0:00:09]}  Re1+ {[%clk 0:00:06]} 44. Kd3 {[%clk 0:00:08]}  Rd1+ {[%clk 0:00:04]} 45. Kc4 {[%clk 0:00:08]}  Rb1 {[%clk 0:00:03]} 46. Nb6 {[%clk 0:00:06]}  Rc1+ {[%clk 0:00:02]} 47. Kb5 {[%clk 0:00:06]}  Bxb6 {[%clk 0:00:02]} 48. Kxb6 {[%clk 0:00:06]}  Rb1+ {[%clk 0:00:01]} 49. Kc7 {[%clk 0:00:07]} 1-0


[Site "https://www.chess.com"]

[Event "Titled Tuesday Blitz May 10 Late 2022"]
[White "Lewtak, Damian"]
[Black "Terry, Renato"]
[WhiteFideId "1141724"]
[BlackFideId "3803457"]
[WhiteElo "2362"]
[BlackElo "2577"]
[Result "0-1"]
[Round "05"]
[TimeControl "180+1"]
[Date "2022.05.10"]
[WhiteClock "0:00:05"]
[BlackClock "0:00:06"]

1. g3 {[%clk 0:03:00]}  d5 {[%clk 0:02:59]} 2. Bg2 {[%clk 0:03:01]}  Nf6 {[%clk 0:03:00]} 3. Nf3 {[%clk 0:03:02]}  c6 {[%clk 0:02:59]} 4. O-O {[%clk 0:03:02]}  Bg4 {[%clk 0:03:00]} 5. c4 {[%clk 0:03:02]}  dxc4 {[%clk 0:02:57]} 6. Ne5 {[%clk 0:03:02]}  Be6 {[%clk 0:02:56]} 7. Na3 {[%clk 0:03:01]}  Qd4 {[%clk 0:02:56]} 8. Nf3 {[%clk 0:02:59]}  Qd5 {[%clk 0:02:56]} 9. Re1 {[%clk 0:02:50]}  Nbd7 {[%clk 0:02:52]} 10. h4 {[%clk 0:02:43]}  Qc5 {[%clk 0:02:38]} 11. Ng5 {[%clk 0:02:36]}  Bg4 {[%clk 0:02:38]} 12. Qc2 {[%clk 0:02:29]}  h6 {[%clk 0:02:35]} 13. Nh3 {[%clk 0:02:25]}  e5 {[%clk 0:02:25]} 14. Qxc4 {[%clk 0:02:15]}  Be7 {[%clk 0:02:05]} 15. d3 {[%clk 0:02:15]}  O-O {[%clk 0:02:02]} 16. Be3 {[%clk 0:02:14]}  Qa5 {[%clk 0:01:59]} 17. Nc2 {[%clk 0:02:03]}  Be6 {[%clk 0:01:40]} 18. Qc3 {[%clk 0:02:02]}  Qc7 {[%clk 0:01:38]} 19. Qd2 {[%clk 0:01:44]}  Ng4 {[%clk 0:01:35]} 20. d4 {[%clk 0:01:31]}  Rad8 {[%clk 0:01:31]} 21. Qc3 {[%clk 0:01:25]}  Nxe3 {[%clk 0:01:27]} 22. Qxe3 {[%clk 0:01:13]}  Rfe8 {[%clk 0:01:14]} 23. dxe5 {[%clk 0:01:07]}  Nxe5 {[%clk 0:01:13]} 24. Nf4 {[%clk 0:01:06]}  Bf5 {[%clk 0:01:10]} 25. Qc3 {[%clk 0:01:04]}  Ng4 {[%clk 0:01:05]} 26. Nh5 {[%clk 0:00:51]}  Bf8 {[%clk 0:00:57]} 27. e4 {[%clk 0:00:44]}  Bh7 {[%clk 0:00:56]} 28. Nf4 {[%clk 0:00:39]}  Qb6 {[%clk 0:00:54]} 29. Ne3 {[%clk 0:00:29]}  Bb4 {[%clk 0:00:49]} 30. Nxg4 {[%clk 0:00:25]}  Bxc3 {[%clk 0:00:49]} 31. bxc3 {[%clk 0:00:26]}  Rd2 {[%clk 0:00:45]} 32. Rad1 {[%clk 0:00:24]}  Red8 {[%clk 0:00:44]} 33. Rxd2 {[%clk 0:00:24]}  Rxd2 {[%clk 0:00:45]} 34. e5 {[%clk 0:00:25]}  Bf5 {[%clk 0:00:42]} 35. Ne3 {[%clk 0:00:25]}  Bd3 {[%clk 0:00:39]} 36. Bh3 {[%clk 0:00:18]}  g5 {[%clk 0:00:30]} 37. hxg5 {[%clk 0:00:17]}  hxg5 {[%clk 0:00:31]} 38. Nh5 {[%clk 0:00:18]}  Qb2 {[%clk 0:00:25]} 39. Nf6+ {[%clk 0:00:17]}  Kf8 {[%clk 0:00:25]} 40. Bf5 {[%clk 0:00:16]}  Rxf2 {[%clk 0:00:07]} 41. Bxd3 {[%clk 0:00:15]}  Qd2 {[%clk 0:00:08]} 42. Nfg4 {[%clk 0:00:13]}  Qxe1+ {[%clk 0:00:08]} 43. Bf1 {[%clk 0:00:11]}  Rf3 {[%clk 0:00:07]} 44. Nf5 {[%clk 0:00:05]}  Qxf1+ {[%clk 0:00:06]} 0-1


[Site "https://www.chess.com"]

[Event "Titled Tuesday Blitz May 10 Late 2022"]
[White "Manukian, Artak"]
[Black "Marin Ramirez, Gerardo"]
[WhiteFideId "13301373"]
[BlackFideId "3901068"]
[WhiteElo "2406"]
[BlackElo "1920"]
[Result "1-0"]
[Round "05"]
[TimeControl "180+1"]
[Date "2022.05.11"]
[WhiteClock "0:02:28"]
[BlackClock "0:02:27"]

1. e4 {[%clk 0:03:00]}  c5 {[%clk 0:02:58]} 2. Nf3 {[%clk 0:03:00]}  d6 {[%clk 0:02:58]} 3. Bb5+ {[%clk 0:03:00]}  Nd7 {[%clk 0:02:57]} 4. O-O {[%clk 0:02:59]}  a6 {[%clk 0:02:55]} 5. Bd3 {[%clk 0:02:59]}  Ngf6 {[%clk 0:02:53]} 6. Re1 {[%clk 0:02:59]}  g6 {[%clk 0:02:53]} 7. a4 {[%clk 0:02:58]}  Bg7 {[%clk 0:02:53]} 8. c3 {[%clk 0:02:57]}  O-O {[%clk 0:02:45]} 9. Bc2 {[%clk 0:02:55]}  b6 {[%clk 0:02:40]} 10. d4 {[%clk 0:02:55]}  cxd4 {[%clk 0:02:33]} 11. cxd4 {[%clk 0:02:56]}  Bb7 {[%clk 0:02:33]} 12. Nc3 {[%clk 0:02:56]}  Rc8 {[%clk 0:02:31]} 13. e5 {[%clk 0:02:34]}  Nd5 {[%clk 0:02:27]} 14. e6 {[%clk 0:02:28]} 1-0


[Site "https://www.chess.com"]

[Event "Titled Tuesday Blitz May 10 Late 2022"]
[White "Nagy, Gabor"]
[Black "Nozdrachev, Leonid"]
[WhiteFideId "737119"]
[BlackFideId "24113433"]
[WhiteElo "2569"]
[BlackElo "2255"]
[Result "1-0"]
[Round "05"]
[TimeControl "180+1"]
[Date "2022.05.11"]
[WhiteClock "0:02:23"]
[BlackClock "0:01:00"]

1. d4 {[%clk 0:03:00]}  d6 {[%clk 0:02:59]} 2. Nf3 {[%clk 0:03:01]}  Nf6 {[%clk 0:02:56]} 3. Nc3 {[%clk 0:03:00]}  Nbd7 {[%clk 0:02:52]} 4. e4 {[%clk 0:03:00]}  e5 {[%clk 0:02:52]} 5. Rg1 {[%clk 0:03:00]}  g6 {[%clk 0:02:38]} 6. g4 {[%clk 0:02:59]}  Bg7 {[%clk 0:02:39]} 7. g5 {[%clk 0:02:58]}  Nh5 {[%clk 0:02:38]} 8. dxe5 {[%clk 0:02:58]}  Nxe5 {[%clk 0:02:36]} 9. Nxe5 {[%clk 0:02:58]}  Bxe5 {[%clk 0:02:36]} 10. Be3 {[%clk 0:02:57]}  Bxh2 {[%clk 0:02:27]} 11. Rh1 {[%clk 0:02:55]}  Bf4 {[%clk 0:02:20]} 12. Bxf4 {[%clk 0:02:39]}  Nxf4 {[%clk 0:02:18]} 13. Qd4 {[%clk 0:02:40]}  Rf8 {[%clk 0:02:12]} 14. Qe3 {[%clk 0:02:32]}  Qxg5 {[%clk 0:01:21]} 15. Nd5 {[%clk 0:02:29]}  Ng2+ {[%clk 0:01:10]} 16. Bxg2 {[%clk 0:02:28]}  Qxg2 {[%clk 0:01:11]} 17. O-O-O {[%clk 0:02:27]}  Kd8 {[%clk 0:01:06]} 18. Rdg1 {[%clk 0:02:25]}  Qxh1 {[%clk 0:01:03]} 19. Rxh1 {[%clk 0:02:24]}  Be6 {[%clk 0:01:00]} 20. Qg5+ {[%clk 0:02:23]} 1-0


[Site "https://www.chess.com"]

[Event "Titled Tuesday Blitz May 10 Late 2022"]
[White "Ng, Gary"]
[Black "Wachinger, Guenther"]
[WhiteFideId "2604914"]
[BlackFideId "4604261"]
[WhiteElo "2241"]
[BlackElo "2212"]
[Result "1-0"]
[Round "05"]
[TimeControl "180+1"]
[Date "2022.05.11"]
[WhiteClock "0:00:18"]
[BlackClock "0:01:15"]

1. d4 {[%clk 0:03:00]}  Nf6 {[%clk 0:02:59]} 2. Bf4 {[%clk 0:03:01]}  d5 {[%clk 0:02:58]} 3. e3 {[%clk 0:03:01]}  c5 {[%clk 0:02:57]} 4. Nd2 {[%clk 0:03:00]}  Nc6 {[%clk 0:02:58]} 5. c3 {[%clk 0:03:00]}  e6 {[%clk 0:02:58]} 6. Ngf3 {[%clk 0:03:00]}  cxd4 {[%clk 0:02:58]} 7. exd4 {[%clk 0:02:59]}  Nh5 {[%clk 0:02:59]} 8. Bg5 {[%clk 0:02:49]}  f6 {[%clk 0:02:58]} 9. Bh4 {[%clk 0:02:50]}  Bd6 {[%clk 0:02:57]} 10. g4 {[%clk 0:02:33]}  Nf4 {[%clk 0:02:56]} 11. g5 {[%clk 0:02:30]}  Ng6 {[%clk 0:02:28]} 12. Bg3 {[%clk 0:01:59]}  fxg5 {[%clk 0:02:24]} 13. Bxd6 {[%clk 0:01:52]}  Qxd6 {[%clk 0:02:24]} 14. Nxg5 {[%clk 0:01:52]}  O-O {[%clk 0:02:24]} 15. Qh5 {[%clk 0:01:50]}  Rf6 {[%clk 0:02:07]} 16. Nxh7 {[%clk 0:01:35]}  Qf4 {[%clk 0:01:55]} 17. Nxf6+ {[%clk 0:01:31]}  Qxf6 {[%clk 0:01:56]} 18. Rg1 {[%clk 0:01:11]}  Nce7 {[%clk 0:01:52]} 19. Bd3 {[%clk 0:01:04]}  Nf4 {[%clk 0:01:45]} 20. Qh7+ {[%clk 0:01:04]}  Kf8 {[%clk 0:01:45]} 21. O-O-O {[%clk 0:00:56]}  Nxd3+ {[%clk 0:01:44]} 22. Qxd3 {[%clk 0:00:56]}  Bd7 {[%clk 0:01:44]} 23. Nf3 {[%clk 0:00:51]}  Nc6 {[%clk 0:01:42]} 24. Rde1 {[%clk 0:00:45]}  Rc8 {[%clk 0:01:41]} 25. Ne5 {[%clk 0:00:42]}  Ke7 {[%clk 0:01:33]} 26. Qg6 {[%clk 0:00:32]}  Nxd4 {[%clk 0:01:27]} 27. Qxf6+ {[%clk 0:00:25]}  gxf6 {[%clk 0:01:27]} 28. Rg7+ {[%clk 0:00:25]}  Ke8 {[%clk 0:01:20]} 29. Nxd7 {[%clk 0:00:21]}  e5 {[%clk 0:01:18]} 30. Nxf6+ {[%clk 0:00:19]}  Kf8 {[%clk 0:01:17]} 31. Rg8+ {[%clk 0:00:18]}  Kf7 {[%clk 0:01:17]} 32. Rxc8 {[%clk 0:00:19]}  Nf3 {[%clk 0:01:15]} 33. Re3 {[%clk 0:00:18]} 1-0


[Site "https://www.chess.com"]